Workbook

Sheet Freibetragsrechner
B2: bAV-Freibetragsrechner | J2: Ja
J3: Nein
B4: Bitte blaue Eingabefelder kundenindividuell anpassen
B6: monatliche Versorgungsbezüge (bzw. 1/120 der Kapitalleistung) | D6: 1000
B7: Freibetrag (120tel der monatlichen Bezugsgröße nach § 18 SGB IV) aus dem Jahr: | C7: 2024 | D7: =VLOOKUP(C7,A51:B81,2,0) -> 176.75
B8: Gesamtbeitragssatz gessetzliche Krankenversicherung im Jahr: | C8: 2024 | D8: 0.146
B9: Zusatzbeitragssatz (z.B.1,30%) im Jahr: | C9: 2024 | D9: 0.013
B10: Beitragssatz der gesetzlichen Pflegeversicherung Jahr: | C10: 2024 | D10: 0.034
B11: Haben Sie Kinder? Wenn ja Zuschlag für Kinderlose. | C11: Nein | D11: =IF(C11="nein",0.6%,0) -> 0.006
B12: Beitragsbemessungsgrenze in der gesetzlichen Kranken- und Pflegeversicherung | C12: 2024 | D12: 5175
B15: Berechnungsergebnisse | F15: Zum Vergleich: alte Regelung | H15: Monatliche Verbesserung im Vergleich zur alten Regelung
B17: Beiträge in der gesetzlichen Krankenversicherung | D17: =IF(IF($D$6<$D$12,($D$6-$D$7)*($D$8+$D$9), ($D$12-$D$7)*($D$8+$D$9))<0,0,IF($D$6<$D$12,($D$6-$D$7)*($D$8+$D$9), ($D$12-$D$7)*($D$8+$D$9))) -> 130.89675 | F17: =IF(D17=0,0,IF($D$6<$D$12,$D$6*($D$8+$D$9), $D$12*($D$8+$D$9))) -> 159
B18: Beiträge in der gesetzlichen Pflegeversicherung | D18: =IF(D17=0,0,IF($D$6<$D$12,$D$6*($D$10+$D$11), $D$12*($D$10+$D$11))) -> 40 | F18: =IF(D17=0,0,IF($D$6<$D$12,$D$6*($D$10+$D$11), $D$12*($D$10+$D$11))) -> 40
B19: Bruttomonatsrente nach Abzug der Beiträge | D19: =D6-D17-D18 -> 829.10325 | F19: =D6-F17-F18 -> 801 | H19: =D19-F19 -> 28.10325
B20: Effektive Beitragsbelastung der monatl. Versorgungsbezüge | D20: =1-D19/D6 -> 0.17089675 | F20: =1-F19/D6 -> 0.199
H23: Stand 20.11.2023
B49: *Die Bezugsgröße (gem. § 18 Abs. 1 SGB IV) hatte im Zeitraum von 1990 bis 2019 einen Anstieg von im Durchschnitt 2,22% pro Jahr
A50: Jahr | B50: Freibetrag | D50: Freibetrag
A51: 2019 | B51: 155.75 | D51: =B51*120 -> 18690
A52: 2020 | B52: 159.25 | D52: =B52*120 -> 19110
A53: 2021 | B53: 164.5 | D53: 19740
A54: 2022 | B54: 164.5 | D54: 19740
A55: 2023 | B55: =B54*1.0222 -> 168.1519 | D55: 20178.228
A56: 2024 | B56: 176.75 | D56: 21210
A57: 2025 | B57: 180.67385 | D57: 21680.862
A58: 2026 | B58: 184.6848095 | D58: 22162.17714
A59: 2027 | B59: 188.7848122 | D59: 22654.17747
A60: 2028 | B60: 192.9758351 | D60: 23157.10021
A61: 2029 | B61: 197.2598986 | D61: 23671.18783
A62: 2030 | B62: 201.6390684 | D62: 24196.6882
A63: 2031 | B63: 206.1154557 | D63: 24733.85468
A64: 2032 | B64: 210.6912188 | D64: 25282.94626
A65: 2033 | B65: 215.3685639 | D65: 25844.22766
A66: 2034 | B66: 220.149746 | D66: 26417.96952
A67: 2035 | B67: 225.0370703 | D67: 27004.44844
A68: 2036 | B68: 230.0328933 | D68: 27603.94719
A69: 2037 | B69: 235.1396235 | D69: 28216.75482
A70: 2038 | B70: 240.3597232 | D70: 28843.16678
A71: 2039 | B71: 245.695709 | D71: 29483.48508
A72: 2040 | B72: 251.1501538 | D72: 30138.01845
A73: 2041 | B73: 256.7256872 | D73: 30807.08246
A74: 2042 | B74: 262.4249974 | D74: 31490.99969
A75: 2043 | B75: 268.2508324 | D75: 32190.09988
A76: 2044 | B76: 274.2060008 | D76: 32904.7201
A77: 2045 | B77: 280.2933741 | D77: 33635.20489
A78: 2046 | B78: 286.515887 | D78: 34381.90644
A79: 2047 | B79: 292.8765397 | D79: 35145.18476
A80: 2048 | B80: 299.3783988 | D80: 35925.40786
A81: 2049 | B81: =B80*1.0222 -> 306.0245993 | D81: 36722.95192
A82: 2050 | B82: =B81*1.0222 -> 312.8183454 | D82: 37538.20145
A83: 2051 | B83: 319.7629127 | D83: 38371.54952
A84: 2052 | B84: 326.8616493 | D84: 39223.39792
A85: 2053 | B85: 334.1179779 | D85: 40094.15735
A86: 2054 | B86: 341.5353971 | D86: 40984.24765
A87: 2055 | B87: 349.1174829 | D87: 41894.09794
A88: 2056 | B88: 356.867891 | D88: 42824.14692
A89: 2057 | B89: 364.7903582 | D89: 43774.84298
A90: 2058 | B90: 372.8887041 | D90: 44746.64449
A91: 2059 | B91: =B90*1.0222 -> 381.1668334 | D91: 45740.02
A92: 2060 | B92: =B91*1.0222 -> 389.6287371 | D92: 46755.44845
A93: 2061 | B93: 398.278495 | D93: 47793.4194
A94: 2062 | B94: =B93*1.0222 -> 407.1202776 | D94: 48854.43331

Sheet Tabelle2

Sheet Tabelle3
